Cogmind - Beta 16.1 @@@ ROGUE MODE // 2026.02.17 @ 08:48:45 Player: Voldy Result: Self-destructed Performance ------------- Evolutions (2) 1000 Regions Visited (5) 1000 Robots Destroyed (25) 125 Value Destroyed (382) 382 Prototype IDs (2) 40 Alien Tech Used (0) 0 Bonus (300) 300 TOTAL SCORE: 2847 Bonus ------- Aligned with FarCom 300 Cogmind --------- Core Integrity 517/550 Matter 300/300 Energy 159/165 System Corruption 0% Temperature Danger (416) Movement Core (500) Ox9 Location -8/Materials Parts ------- > --- POWER (2) -------- Light Ion Engine Light Deuterium Engine > --- PROPULSION (4) --- Flying Fortress v7 > --- UTILITY (3) ------ Small Storage Unit ECM Suite Hardened Medium Armor Plating > --- WEAPON (2) ------- EM Shotgun EM Shotgun > --- INVENTORY (8) ---- Nuclear Core Improved Targeting Computer EM Shotgun Heavy Particle Cannon Heavy Particle Cannon Light Assault Rifle Peak State ------------ > --- POWER ------------ Light Ion Engine Light Deuterium Engine > --- PROPULSION ------- Flying Fortress v7 > --- UTILITY ---------- Small Storage Unit ECM Suite Hardened Medium Armor Plating > --- WEAPON ----------- EM Shotgun EM Shotgun > --- INVENTORY -------- Nuclear Core EM Shotgun Heavy Particle Cannon Heavy Particle Cannon Light Assault Rifle [Rating: 46] Favorites ----------- Power Ion Engine Engine Ion Engine Propulsion VTOL Module Leg Aluminum Leg Wheel Compact Wheel Flight Unit VTOL Module Utility Small Storage Unit Device ECM Suite Storage Small Storage Unit Protection Hardened Medium Armor Plating Weapon EM Shotgun Energy Gun EM Shotgun Ballistic Gun Light Assault Rifle Build | -11 -10 -10 -10 -9 -8 ------- Run | Yrd Mat Min Exi Min Mat Slots Evolved 4 | . . . . . 4 Power 1 | . . . . . 1 Propulsion 2 | . . . . . 2 Utility 1 | . . . . . 1 Weapon . | . . . . . . Parts Attached 15 | 2 5 . . 4 4 Power 3 | . 1 . . . 2 Engine 3 | . 1 . . . 2 Core . | . . . . . . Reactor . | . . . . . . Propulsion 7 | 2 2 . . 2 1 Treads . | . . . . . . Leg . | . . . . . . Wheel 2 | 2 . . . . . Hover . | . . . . . . Flight 5 | . 2 . . 2 1 Utility 2 | . 1 . . . 1 Device 1 | . 1 . . . . Storage . | . . . . . . Processor . | . . . . . . Hackware . | . . . . . . Protection 1 | . . . . . 1 Artifact . | . . . . . . Weapon 3 | . 1 . . 2 . Energy Gun 3 | . 1 . . 2 . Energy Cannon . | . . . . . . Ballistic Gun . | . . . . . . Ballistic Cannon . | . . . . . . Launcher . | . . . . . . Special Weapon . | . . . . . . Impact Weapon . | . . . . . . Slashing Weapon . | . . . . . . Piercing Weapon . | . . . . . . Special Melee Weapon . | . . . . . . Unidentified Prototypes 1 | . . . . . 1 Corrupted Parts 1 | . . . . 1 . System Corruption 1 | . . . . 1 . Parts Lost 6 | . 2 . . 3 1 Power 2 | . 1 . . . 1 Propulsion 1 | . . . . 1 . Utility . | . . . . . . Weapon 3 | . 1 . . 2 . Highest Loss Streak 2 | . 1 . . 2 1 To Critical Strikes . | . . . . . . Average Backups 6 | 7 7 8 6 4 5 Power 1 | 1 . 1 1 1 1 Propulsion 2 | 5 3 4 2 1 . Utility . | . . . . . . Weapon 3 | 1 3 3 3 2 4 Tool/Special . | . . . . . . Unused Backups 12 | . . . 4 . 8 Power 2 | . . . . . 2 Propulsion 4 | . . . 4 . . Utility 1 | . . . . . 1 Weapon 5 | . . . . . 5 Tool/Special . | . . . . . . Average Slot Usage (%) 93 | . 95 100 100 99 66 Engine 14 | . 13 14 14 14 18 Flight 24 | . 26 28 28 27 9 Device 12 | . 11 14 14 14 9 Storage 13 | . 14 14 14 14 9 Energy Gun 16 | . 13 14 14 21 18 Ballistic Gun 9 | . 14 14 14 6 . Peak Build Rating 46 | 6 11 11 13 14 46 Average Rating 16 | 5 10 11 11 13 42 On Entrance 10 | 6 6 11 11 13 13 Avg Prop Armor Cover (%) . | . . . . . . Naked Turns . | . . . . . . Heaviest Build 29 | 11 16 16 16 18 29 Greatest Support 50 | 32 32 8 8 8 50 Greatest Overweight (x) 4 | . 3 1 1 4 . Average Overweight (x) . | . . 1 1 1 . Largest Inventory Capacity 8 | 8 8 8 8 8 8 Average Capacity 8 | 8 8 8 8 8 8 Most Carried 8 | 8 8 8 8 8 8 Average Carried 7 | 5 7 8 7 7 5 Final Capacity 8 | 8 8 8 8 8 8 Final Carried 8 | 4 8 8 8 8 6 Class Distribution -------------------- 100% | Mutant Dominant Class ---------------- Mutant | -10/Materials Mutant | -10/Mines Mutant | -10/Exiles Mutant | -9/Mines Mutant | -8/Materials Resources | -11 -10 -10 -10 -9 -8 ----------- Run | Yrd Mat Min Exi Min Mat Matter Collected 369 | 220 70 . . 42 37 Remotely . | . . . . . . Salvage Created 520 | . 199 . . 127 194 Parts 48 | . 18 . . 13 17 Haulers Intercepted . | . . . . . . Recyclers Shooed . | . . . . . . Parts Field Recycled . | . . . . . . Retrieved Matter . | . . . . . . Parts Self-Destructed . | . . . . . . Prevented . | . . . . . . Parts Restored . | . . . . . . Kills | -11 -10 -10 -10 -9 -8 ------- Run | Yrd Mat Min Exi Min Mat Combat Hostiles Destroyed 24 | . 9 . . 8 7 Guns 20 | . 7 . . 7 6 AOE 4 | . 2 . . 1 1 Classes Destroyed 4 | . 2 . . . 2 Watcher 1 | . . . . . 1 Swarmer 20 | . 6 . . 8 6 Grunt 3 | . 3 . . . . Sentry 1 | . . . . . 1 Best Kill Streak 4 | . 3 . . 4 4 Combat Bots Only 4 | . 3 . . 4 4 Max Kills in Single Turn 2 | . 2 . . 2 1 Gunslinging 1 | . . . . 1 . Exploded 2 | . 2 . . 1 1 Melee . | . . . . . . Uniques/NPCs Destroyed . | . . . . . . Combat | -11 -10 -10 -10 -9 -8 -------- Run | Yrd Mat Min Exi Min Mat Hostile Shots Fired 119 | . 33 . . 38 48 Missed 33 | . 11 . . 9 13 Hits 86 | . 22 . . 29 35 Projectile 86 | . 22 . . 29 35 Damage Taken 838 | . 243 . . 254 341 Core 184 | . 65 . . 86 33 Absorbed by Shields . | . . . . . . Core Remaining (%) 69 | 100 . . . 39 . Volleys Fired 49 | . 21 . . 12 16 Largest 2 | . 2 . . 2 2 Hottest 90 | . 65 . . 90 90 Shots Fired 91 | . 37 . . 22 32 Gun 91 | . 37 . . 22 32 Cannon . | . . . . . . Launcher . | . . . . . . Special . | . . . . . . Kinetic 25 | . 21 . . 4 . Thermal . | . . . . . . Explosive . | . . . . . . Electromagnetic 66 | . 16 . . 18 32 Robot Hit Streak 8 | . 6 . . 8 8 Robot Miss Streak 10 | . 4 . . 3 10 Penetration Max . | . . . . . . Secondary Targets 7 | . 2 . . 1 4 Max Gunslinging Chain 1 | . 1 . . 1 1 Shots Hit Robots 57 | . 22 . . 17 18 Core Hits 33 | . 11 . . 11 11 Critical Kills . | . . . . . . Critical Parts Destroyed . | . . . . . . Critical Strikes . | . . . . . . Melee Attacks . | . . . . . . Impact . | . . . . . . Slashing . | . . . . . . Piercing . | . . . . . . Sneak Attacks . | . . . . . . Combat Hostiles . | . . . . . . Follow-up Attacks . | . . . . . . Damage Inflicted 843 | . 281 . . 234 328 Guns 641 | . 213 . . 187 241 Cannons . | . . . . . . Explosions 193 | . 59 . . 47 87 Melee . | . . . . . . Ramming 9 | . 9 . . . . Kinetic 87 | . 62 . . 25 . Thermal 193 | . 59 . . 47 87 Explosive . | . . . . . . Electromagnetic 554 | . 151 . . 162 241 Impact . | . . . . . . Slashing . | . . . . . . Piercing . | . . . . . . Highest Corruption 1 | . . . . 1 . Average Corruption 1 | . . . . 1 . Corruption Purged . | . . . . . . Corruption Blocked . | . . . . . . Effects 1 | . . . . 1 . Data Loss (minor) 1 | . . . . 1 . Overload Shots . | . . . . . . Overflow Damage 34 | . 4 . . . 30 Projectiles . | . . . . . . Explosions 34 | . 4 . . . 30 Melee . | . . . . . . Knockbacks . | . . . . . . Impact . | . . . . . . Kinetic . | . . . . . . Secondary . | . . . . . . Self-Inflicted Damage 110 | . 41 . . 13 56 Shots 4 | . 1 . . 1 2 Rammed 2 | . 2 . . . . Targets Rammed 2 | . 2 . . . . Kicked . | . . . . . . Crushed . | . . . . . . Highest Temperature 466 | . 96 . . 93 466 Average Temperature 92 | . 37 . . 37 150 Received Heat Transfer 51 | . 42 . . . 9 Effects 4 | . . . . . 4 Shutdowns 3 | . . . . . 3 Short Circuit 1 | . . . . . 1 Siege Activations . | . . . . . . Martial Activations . | . . . . . . Shielding Activations . | . . . . . . Robots Disrupted . | . . . . . . Combat Hostiles . | . . . . . . Robots Corrupted . | . . . . . . Combat Hostiles . | . . . . . . Parts Fried 1 | . . . . . 1 Impact Corruptions . | . . . . . . Robots Melted . | . . . . . . Combat Hostiles . | . . . . . . Parts Melted . | . . . . . . Heat Transferred 200 | . 50 . . 150 . Parts Sabotaged . | . . . . . . Parts Stolen . | . . . . . . Parts Stripped . | . . . . . . Power Chain Reactions 4 | . 1 . . 1 2 Alert | -11 -10 -10 -10 -9 -8 ------- Run | Yrd Mat Min Exi Min Mat Maximum Alert Level . | . . . . . . Low Security (%) 100 | 100 100 100 . 100 100 Level 1 . | . . . . . . Level 2 . | . . . . . . Level 3 . | . . . . . . Level 4 . | . . . . . . Level 5 . | . . . . . . High Security . | . . . . . . Max Security . | . . . . . . Peak Influence 112 | . 98 16 . 85 112 Initial 16 | . . 16 . . 6 Average 37 | . 40 13 . 26 56 Influence Increases 644 | . 233 . . 185 226 Destroy 0b10 Robot/C 480 | . 180 . . 160 140 Destroy 0b10 Robot/NC 5 | . . . . . 5 Destroy Leader 82 | . 30 . . 20 32 Successful Hack 24 | . 5 . . . 19 Disable Machine 15 | . 15 . . . . Destroy Structure 23 | . 3 . . 5 15 Partial Spotted 15 | . . . . . 15 Influence Decreases 532 | . 191 36 6 168 131 Entered New Map 43 | . . 26 6 . 11 Time Decay 429 | . 171 10 . 138 110 Lost Part 60 | . 20 . . 30 10 Squads Dispatched 6 | . 1 . . . 5 Investigation 2 | . . . . . 2 Extermination . | . . . . . . Reinforcement 1 | . 1 . . . . Assault 2 | . . . . . 2 Garrison 1 | . . . . . 1 Intercept . | . . . . . . Searches Triggered . | . . . . . . Construction Impeded . | . . . . . . Haulers Reinforced . | . . . . . . Active Scanning Responses . | . . . . . . Cargo Convoy Interrupts . | . . . . . . Stealth | -11 -10 -10 -10 -9 -8 --------- Run | Yrd Mat Min Exi Min Mat Distress Signals 3 | . 1 . . . 2 Communications Jammed . | . . . . . . Distress Signals . | . . . . . . Times Spotted 40 | . 12 . . 9 19 Peak Tracking Total 8 | . 3 . . 4 8 Tactical Retreats 5 | . 2 . . 1 2 ECM-based Alert Blocks 15 | . 3 . . 1 11 Traps | -11 -10 -10 -10 -9 -8 ------- Run | Yrd Mat Min Exi Min Mat Traps Triggered . | . . . . . . Indirectly . | . . . . . . Trap Hack Attempts . | . . . . . . Triggered . | . . . . . . Disarmed . | . . . . . . Reprogrammed . | . . . . . . Reused . | . . . . . . Traps Extracted . | . . . . . . Installed . | . . . . . . Triggered . | . . . . . . Machines | -11 -10 -10 -10 -9 -8 ---------- Run | Yrd Mat Min Exi Min Mat Machines Disabled 1 | . 1 . . . . Max in Single Turn 1 | . 1 . . . . Garrison Access 1 | . . . . . 1 Machines Repaired . | . . . . . . Machines Dismantled . | . . . . . . Machines Sabotaged . | . . . . . . Overloaded Fab Kills . | . . . . . . Hacking | -11 -10 -10 -10 -9 -8 --------- Run | Yrd Mat Min Exi Min Mat Machines Accessed 10 | . 4 . . 1 5 Terminals 9 | . 4 . . 1 4 Fabricators . | . . . . . . Repair Stations . | . . . . . . Recycling Units . | . . . . . . Scanalyzers 1 | . . . . . 1 Garrison Access . | . . . . . . Total Hacks 32 | . 9 . . 4 19 Successful 12 | . 2 . . . 10 Failed 20 | . 7 . . 4 9 Catastrophic 6 | . 4 . . 1 1 Database Lockouts . | . . . . . . Manual 15 | . 7 . 1 . 7 Terminals 28 | . 9 . . 4 15 Fabricators . | . . . . . . Repair Stations . | . . . . . . Recycling Units . | . . . . . . Scanalyzers 4 | . . . . . 4 Garrison Access . | . . . . . . Terminal Hacks 8 | . 2 . . . 6 Record 2 | . . . . . 2 Robot Analysis 2 | . 1 . . . 1 Branch Access Points 1 | . . . . . 1 Emergency Access Points 1 | . . . . . 1 Transport Status 1 | . 1 . . . . Zone Layout 1 | . . . . . 1 Fabricator Hacks . | . . . . . . Repair Station Hacks . | . . . . . . Recycling Unit Hacks . | . . . . . . Scanalyzer 4 | . . . . . 4 Insert Component 1 | . . . . . 1 Retrieve Study 3 | . . . . . 3 Garrison Access Hacks . | . . . . . . Unauthorized Hacks . | . . . . . . Terminals . | . . . . . . Fabricators . | . . . . . . Repair Stations . | . . . . . . Recycling Units . | . . . . . . Scanalyzers . | . . . . . . Garrison Access . | . . . . . . Data Cores Recovered . | . . . . . . Used . | . . . . . . Hacking Detections 9 | . 3 . . 1 5 Full Trace Events 1 | . . . . . 1 Feedback Events . | . . . . . . Feedback Blocked . | . . . . . . Robot Schematics Acquired . | . . . . . . Robots Built . | . . . . . . Authchips . | . . . . . . Time . | . . . . . . Total Robot Build Rating . | . . . . . . Part Schematics Acquired . | . . . . . . Parts Built . | . . . . . . Authchips . | . . . . . . Time . | . . . . . . Total Part Build Rating . | . . . . . . Part Studies Acquired 3 | . . . . . 3 Parts Repaired . | . . . . . . Time . | . . . . . . Parts Recycled . | . . . . . . Recycled Matter . | . . . . . . Retrieved Matter . | . . . . . . Retrieved Components . | . . . . . . Parts Scanalyzed . | . . . . . . Part Schematics Acquired . | . . . . . . Parts Damaged . | . . . . . . Bothacking | -11 -10 -10 -10 -9 -8 ------------ Run | Yrd Mat Min Exi Min Mat Used RIF Installer . | . . . . . . Robots Hacked . | . . . . . . Non-combat . | . . . . . . Combat . | . . . . . . Robot Hacks Applied . | . . . . . . Relay Couplers Released 1 | . . . . . 1 Machine Destruction 1 | . . . . . 1 Fabnet Peak Effective % . | . . . . . . Robots Rewired . | . . . . . . Allies Hacked . | . . . . . . Hacks Repelled . | . . . . . . Allies | -11 -10 -10 -10 -9 -8 -------- Run | Yrd Mat Min Exi Min Mat Total Allies . | . . . . . . Largest Group . | . . . . . . Highest-Rated Group . | . . . . . . Highest-Rated Ally . | . . . . . . Total Orders . | . . . . . . Ally Attacks . | . . . . . . Total Damage . | . . . . . . Kills . | . . . . . . Allies Corrupted . | . . . . . . Allies Melted . | . . . . . . Intel | -11 -10 -10 -10 -9 -8 ------- Run | Yrd Mat Min Exi Min Mat Active Infowar (turns) 1094 | . 431 25 238 332 68 ECM 1094 | . 431 25 238 332 68 Robot Analysis Total 2 | . 1 . . . 1 Derelict Logs Recovered . | . . . . . . Drone Launches . | . . . . . . Drone Recoveries . | . . . . . . Exploration | -11 -10 -10 -10 -9 -8 ------------- Run | Yrd Mat Min Exi Min Mat Turns Passed 1546 | 7 528 25 238 516 232 Spaces Moved 1195 | 3 365 23 210 298 296 Core 2 | . 2 . . . . Treads . | . . . . . . Legs . | . . . . . . Wheels 8 | 3 5 . . . . Hover . | . . . . . . Flight 1185 | . 358 23 210 298 296 Fastest Speed 50 | 100 100 112 112 112 50 Average Speed 106 | 100 112 112 112 149 50 Slowest Speed 355 | 100 200 112 112 355 50 Overloaded Moves . | . . . . . . Propulsion Burnouts . | . . . . . . Robots Hopped 6 | . . . . . 6 Potential Cave-ins . | . . . . . . Cave-ins Triggered . | . . . . . . Exploration Rate (%) 39 | 2 71 9 61 64 28 Regions Visited 5 Branch Regions 3 Pre-discovered Areas . | . . . . . . Known Exits Taken . | . . . . . . Unknown Exits Taken 5 | 1 1 1 1 1 . Scrap Searched . | . . . . . . Spaces Dug . | . . . . . . Terrain Destroyed 21 | . 2 . . 5 14 Melee . | . . . . . . Projectile . | . . . . . . AOE 21 | . 2 . . 5 14 Terrain Rammed . | . . . . . . Walls Destroyed . | . . . . . . Machines Disabled . | . . . . . . Actions | -11 -10 -10 -10 -9 -8 --------- Run | Yrd Mat Min Exi Min Mat Total 1389 | 8 453 22 214 348 344 Wait 94 | . 42 . . 32 20 Move 1178 | 2 364 22 209 297 284 Hop 6 | . . . . . 6 Pick Up 24 | . 12 . 1 3 8 Fast Attach . | . . . . . . Attach 14 | 2 5 . . 3 4 Detach 5 | 2 2 . . . 1 Swap 1 | . . . . 1 . Drop 16 | 2 5 . 4 . 5 Fire 49 | . 21 . . 12 16 Melee . | . . . . . . Ram 2 | . 2 . . . . Kick . | . . . . . . Crush . | . . . . . . Escape Stasis . | . . . . . . Rewire . | . . . . . . Trap . | . . . . . . Miscellaneous . | . . . . . . Route ------- -11/Scrapyard -10/Materials (discovered 3 exits: [*Mat] / [*Min x2]) -10/Mines -10/Exiles -9/Mines -8/Materials History --------- Turn | Location | Event 6 | -11/Scrapyard | Discovered new exit (range 3) 8 | -11/Scrapyard | Entered Materials 9 | -10/Materials | Met a group of wandering Federalists 113 | -10/Materials | Discovered new exit (range 16) 293 | -10/Materials | Discovered new exit (range 8) 309 | -10/Materials | Build established: Mutant 530 | -10/Materials | Discovered new exit (range 6) 536 | -10/Materials | Entered Mines 557 | -10/Mines | Deemed a non-threat by the Exiles lab entrance 557 | -10/Mines | Discovered new exit (range 5) 561 | -10/Mines | Entered Exiles 589 | -10/Exiles | Met 8R-AWN 609 | -10/Exiles | Met EX-HEX 643 | -10/Exiles | Met EX-BIN 657 | -10/Exiles | Aligned with FarCom system 658 | -10/Exiles | Given EX-Vault access code 684 | -10/Exiles | Opened EX-Vault 691 | -10/Exiles | Found Prototype Flight Unit 716 | -10/Exiles | Warned to stay clear of 0b10 Research branches 747 | -10/Exiles | Met EX-DEC 785 | -10/Exiles | Discovered new exit (range 14) 799 | -10/Exiles | Left Exiles lab with Flying Fortress v7 799 | -10/Exiles | Entered Mines 816 | -9/Mines | Met a Derelict bent on vengeance 893 | -9/Mines | A weapon hastily lodged in a ceiling crevice suddenly fell to the ground 929 | -9/Mines | Excavation squad dispatched 929 | -9/Mines | A large section of the Mines collapsed 1040 | -9/Mines | Core integrity fell below 50% 1306 | -9/Mines | Discovered new exit (range 5) 1315 | -9/Mines | Entered Materials 1315 | -8/Materials | Evolved 4 slots: Power x1, Propulsion x2, Utility x1 1318 | -8/Materials | Identified Flying Fortress v7 1377 | -8/Materials | Garrison activated, responded to threat 1547 | -8/Materials | Self-destructed Last Messages --------------- 01456_ R-06 Scavenger collects Lgt. Ion Engine. 01459_ Acquired Hrd. Medium Armor Plating. 01486_ Heat Sink fried. 01486_ Y-45 Defender destroyed. 01486_ Door malfunctions. 01489_ Acquired 18 matter. 01490_ K-01 Serf collects debris. 01491_ W-25 Informer sends out distress signal. 01493_ R-06 Scavenger collects Lgt. Treads. 01493_ K-01 Serf collects debris. 01502_ Acquired Imp. Targeting Computer. 01525_ W-25 Informer sends out distress signal. 01532_ S-10 Pest destroyed. 01532_ Switching to secondary target: S-10 Pest. 01534_ S-10 Pest destroyed. 01534_ Door malfunctions. 01536_ Power failure, Lgt. Ion Engine shutdown. 01540_ Power failure, Lgt. Deuterium Engine+ shutdown. 01547_ Flying Fortress v7 broken. 01547_ Overheating: Short circuit. Map ----- +----------------------------------------------------+ | # #######/##+##?????????????????????????????? | | # + ##?????????????????????????????? | | # # # ?????????????????????????????? | | ######## # ?????????????????????????????? | | # ?????????????????????????????? | | + ?????????????????????????????? | | T # ?????????????????????????????? | | ############### ?????????????????????????????? | | T#????????????# ?????????????????????????????? | | ##????????????# ?????????????????????????????? | | /################????????#######??????????????? | | ???????? T ??????????????? | | ???????? ??????????????? | | ????w??? ^ ??????????????? | | +##### #############????????# ^ ??????????????? | | # #???# # ????????# """ ????????????? | | # #???# T # ??? ""??# """ ????????????? | | # #???# # ?"" """?+ """?????????????? | | ]]# #???# # ?"" """ # ??????????????? | | ] ]# #???# # # ???????????????? | | ]]]# #???# #! # ?????s??????????? | | # ########+### # s########?????????? | | ! + / # # #?????????? | | # ######????# # #?????????? | | ###### ########### sss== #?????????? | | ?????# @ #=% #?????????? | | ?????# ######## ##### ####### # #?????????? | | ?????# #??????# #???????????# # / ??????? | | ?????# #??????# #??##+####### ########### #????? | | ?????# #??????# #??# ] # #????????????????? | | ?????# #??????# #??# # #????????????????? | | ????? #??????# #??# """ # #????????????????? | | ?????##???????# #??# """"" # #????????????????? | | ?????????# ## #### """"" + #????????????????? | | ?????????# + """"" # #????????????????? | | ?????????# w####### """ ### #????????????????? | | ??????????# ???????# #?# #????????????????? | | ??????????#????????# #?# #????????????????? | | ???????????????????########+#?# #????????????????? | | ??????????????????????????# #?# ########?????????? | | ??????????????????????????# #?# #! """ #?????????? | | ??????????????????????????# #?# # """ #?????????? | | ???????????????????######## ### # """ #?????????? | | ???????????????????# # + #?????????? | | ???????????????????# T # ##### ! #?????????? | | ???????????????????# = # #???# + T ????? | | ???????????????????# =# ##??######### ? | | ???????????????????# # ##????????????? ###? | | ???????????????????# /%##???????????????##??? | | ???????????????????######## ##???????????????????? | +----------------------------------------------------+ Best States ------------- Heat Dissipation 31 Energy Generation 20 Energy Capacity 275 Matter Stores 300 Matter Capacity 300 Sight Range 16 Terrain Scan Density 10 ECM Strength 1 Armor Coverage 225 Evasion (%) 60 Item Schematics ----------------- None Robot Schematics ------------------ None Fabricated ------------ Nothing Repaired ---------- Nothing Studied --------- Lgt. Deuterium Engine | -8/Materials | Hacked Nuclear Core | -8/Materials | Hacked Lgt. Assault Rifle | -8/Materials | Hacked Alien Tech Used ----------------- None Achievements -------------- None Challenges ------------ None Game ------ Seed HeavyGunJets Manual? 0 Play Time 00:17:08 Cumulative 14.6 hours Start 2026.02.17 @ 08:31:23 End 2026.02.17 @ 08:48:45 Sessions 1 Manual Loads 0 Difficulty Rogue Special Mode None Game No. 35 Rogue 26 Adventurer 9 Explorer 0 Win Type - Total 0 Types 0/0/0/0/0/0/0/0/0/0 Lore% 17 Gallery% 18 Achievement% 16 Wizard Run 0 Options --------- Layout 0 ASCII 0 Keyboard 1 Movement Numpad Keybinds 0 Fullscreen 2 Font 18/SmallcapsGlow Map View 76x50 Zoom Use 0% Tactical HUD 1 Map Filters NONE Filters NONE Steam 1 RUN: fa967c0a-9498-410c-9820-91909e1629fb